bitfinex-derivatives/quotes_SOLF0:USTF0_20260304
["timestamp","ask_amount","ask_price","bid_price","bid_amount"]
[1772648675686,3.41346307,91.86,91.823,9.797]
[1772648676081,3.41346307,91.86,91.819,4.32207864]
[1772648676282,3.41346307,91.86,91.801,4.3187175]
[1772648676484,3.41346307,91.85,91.801,4.3187175]
[1772648677387,3.41346307,91.85,91.806,9.799]
[1772648677879,3.41346307,91.84,91.806,9.799]
[1772648678477,3.41346307,91.85,91.806,9.799]
[1772648679278,9.794,91.859,91.812,14.1164736]
[1772648680481,3.41346307,91.86,91.812,4.3174736]
[1772648680683,3.41346307,91.87,91.812,4.3174736]
[1772648681283,3.41346307,91.85,91.812,4.3174736]
[1772648681881,9.795,91.847,91.812,4.3174736]
[1772648682077,9.795,91.847,91.8,3.41346307]
[1772648682688,9.795,91.847,91.8,7.68410466]
[1772648683383,9.795,91.847,91.801,4.27064159]
[1772648684482,19.585,91.872,91.782,4.26321438]
[1772648684685,3.41346307,91.86,91.8,3.41346307]
[1772648684887,3.41346307,91.87,91.8,3.41346307]
[1772648685088,9.793,91.863,91.82,3.41346307]
[1772648685386,8.72485685,91.889,91.82,3.41346307]
[1772648685690,3.41346307,91.89,91.82,3.41346307]
[1772648686388,16.71292361,91.892,91.83,3.41346307]
[1772648686686,3.41210383,91.89,91.83,3.41210383]
[1772648687182,9.794,91.856,91.83,3.41210383]
[1772648687680,9.794,91.856,91.82,3.41210383]
[1772648687887,9.795,91.849,91.81,3.41210383]
[1772648688289,3.41210383,91.87,91.806,4.20925404]
[1772648688483,3.41210383,91.86,91.793,4.2138462]
[1772648688689,3.41210383,91.86,91.8,3.41210383]
[1772648688985,9.795,91.852,91.82,3.41210383]
[1772648689190,16.71541102,91.874,91.81,3.41210383]
[1772648689392,3.41210383,91.87,91.81,3.41210383]
[1772648689790,3.41210383,91.86,91.802,4.2138462]
[1772648689991,3.41210383,91.87,91.81,3.41210383]
[1772648691286,9.795,91.844,91.81,3.41210383]
[1772648691688,3.41210383,91.86,91.802,4.2138462]
[1772648691895,3.41210383,91.86,91.8,3.41210383]
[1772648692389,9.796,91.842,91.8,3.41210383]
[1772648692588,16.71679496,91.871,91.82,3.41210383]
[1772648692783,9.795,91.85,91.82,3.41210383]
[1772648693188,7.98806676,91.878,91.82,3.41210383]
[1772648693390,8.7287282,91.879,91.82,3.41210383]
[1772648693589,3.41210383,91.88,91.82,3.41210383]
[1772648693794,7.98806676,91.888,91.82,3.41210383]
[1772648693993,7.98806676,91.887,91.82,3.41210383]
[1772648694294,7.98806676,91.886,91.82,3.41210383]
[1772648694493,16.71679496,91.889,91.82,3.41210383]
[1772648694686,7.98806676,91.888,91.82,3.41210383]
[1772648694890,7.98806676,91.887,91.82,3.41210383]
[1772648695083,7.98806676,91.889,91.82,3.41210383]
[1772648695287,12.14083203,91.89,91.82,3.41210383]
[1772648695288,7.98806676,91.888,91.82,3.41210383]
[1772648695487,3.41210383,91.89,91.82,3.41210383]
[1772648695488,9.794,91.859,91.82,3.41210383]
[1772648696494,3.41210383,91.87,91.811,4.18714948]
[1772648697194,7.98806676,91.879,91.811,4.18714948]
[1772648697395,7.98806676,91.879,91.82,3.41210383]
[1772648697597,7.98806676,91.878,91.82,3.41210383]
[1772648697794,7.98806676,91.877,91.82,3.41210383]
[1772648698095,7.98806676,91.879,91.82,3.41210383]
[1772648698295,7.98806676,91.878,91.82,3.41210383]
[1772648698499,9.794,91.854,91.82,3.41210383]
[1772648700496,7.98806676,91.868,91.82,3.41210383]
[1772648700695,7.98806676,91.867,91.81,3.41210383]
[1772648700895,7.98806676,91.869,91.81,7.66845345]
[1772648701106,8.7287282,91.876,91.83,3.41210383]
[1772648701107,9.794,91.858,91.83,3.41210383]
[1772648701399,9.794,91.858,91.821,4.25634962]
[1772648703699,8.0385554,91.875,91.841,4.25717222]
[1772648703899,16.78669252,91.894,91.85,3.41210383]
[1772648704101,16.78669252,91.906,91.85,3.41210383]
[1772648704302,9.791,91.889,91.85,3.41210383]
[1772648704500,8.0385554,91.904,91.85,3.41210383]
[1772648704804,3.41210383,91.9,91.841,4.25717222]
[1772648705005,8.0385554,91.899,91.841,4.25717222]
[1772648705198,8.0385554,91.898,91.841,4.25717222]
[1772648705404,8.0385554,91.897,91.841,4.25717222]
[1772648705703,8.0385554,91.896,91.841,4.25717222]
[1772648705901,8.0385554,91.895,91.841,4.25717222]
[1772648706203,8.0385554,91.894,91.841,4.25717222]
[1772648706405,8.0385554,91.893,91.86,3.41210383]
[1772648706601,8.0385554,91.9,91.86,3.41210383]
[1772648706807,8.0385554,91.903,91.851,4.26035348]
[1772648707002,8.0385554,91.902,91.851,4.26035348]
[1772648707204,8.0385554,91.901,91.851,4.26035348]
[1772648707403,10.17496606,91.913,91.851,4.26035348]
[1772648707404,9.79,91.89,91.851,4.26035348]
[1772648708205,9.791,91.881,91.841,4.25784375]
[1772648709001,16.78669252,91.896,91.774,26.85688225]
[1772648709002,3.41210383,91.88,91.827,4.25784375]
[1772648709202,3.41210383,91.89,91.831,4.25784375]
[1772648709402,16.77705129,91.895,91.85,3.41210383]
[1772648709707,16.77705129,91.899,91.85,3.41210383]
[1772648709902,8.0385554,91.898,91.85,3.41210383]
[1772648710098,8.73849589,91.899,91.85,3.41210383]
[1772648710099,8.0385554,91.897,91.85,3.41210383]
[1772648710298,8.0385554,91.898,91.85,3.41210383]
[1772648710498,8.0385554,91.897,91.85,3.41210383]
[1772648710708,8.0385554,91.906,91.85,3.41210383]
[1772648710903,8.0385554,91.905,91.85,3.41210383]
[1772648711104,184.73229921,91.923,91.87,3.41210383]
[1772648711303,3.41210383,91.9,91.84,3.41210383]
[1772648711509,3.41210383,91.91,91.85,3.41210383]
[1772648711706,9.79,91.894,91.841,4.25163568]
[1772648712008,8.02675399,91.908,91.86,3.41210383]
[1772648712309,3.41210383,91.91,91.851,4.25163568]
[1772648712511,3.41210383,91.9,91.84,3.41210383]
[1772648713203,3.41210383,91.9,91.84,7.6635939]
[1772648713402,3.41210383,91.91,91.85,7.6635939]
[1772648713607,8.02675399,91.909,91.851,4.25149007]
[1772648713812,3.41210383,91.9,91.851,4.25149007]
[1772648714211,8.02675399,91.906,91.851,4.25149007]
[1772648714403,3.41210383,91.91,91.851,4.25149007]
[1772648714609,3.41210383,91.9,91.851,4.25149007]
[1772648714910,9.79,91.892,91.851,4.25149007]
[1772648716206,9.791,91.884,91.851,4.25149007]
[1772648716515,9.791,91.884,91.791,19.91922561]
[1772648716516,3.41210383,91.88,91.822,4.1833192]
[1772648717211,9.793,91.868,91.822,4.1833192]
[1772648721105,9.794,91.86,91.81,3.41210383]
[1772648721611,9.794,91.86,91.811,9.799]
[1772648721812,9.794,91.853,91.811,9.799]
[1772648722012,3.41210383,91.86,91.8,3.41210383]
[1772648723010,3.41210383,91.86,91.8,7.63377203]
[1772648723216,3.41210383,91.85,91.8,4.2216682]
[1772648723420,9.795,91.847,91.802,9.8]
[1772648723716,3.41210383,91.84,91.784,4.2216682]
[1772648724114,3.41210383,91.84,91.785,9.802]
[1772648724421,3.41210383,91.84,91.791,4.2290159]
[1772648724720,3.41210383,91.86,91.802,4.2290159]
[1772648725125,3.41210383,91.86,91.811,4.2290159]
[1772648725321,9.794,91.86,91.814,4.2290159]
[1772648726418,13.20610383,91.86,91.814,4.2290159]
[1772648726616,3.41210383,91.85,91.8,4.23050291]
[1772648727417,3.41210383,91.86,91.802,4.23050291]
[1772648727719,3.41210383,91.87,91.811,4.23050291]
[1772648728023,3.41210383,91.87,91.811,14.02950291]
[1772648728222,3.41210383,91.87,91.812,4.23050291]
[1772648729224,3.41210383,91.86,91.812,4.23050291]
[1772648730527,9.794,91.859,91.812,4.23050291]
[1772648731130,9.794,91.853,91.804,9.8]
[1772648731827,3.41210383,91.85,91.804,9.8]
[1772648732230,9.795,91.848,91.805,4.21432031]
[1772648732431,9.795,91.848,91.811,4.21432031]
[1772648736635,9.794,91.858,91.811,4.21432031]
[1772648737337,3.41210383,91.88,91.821,4.21834406]
[1772648737537,3.41210383,91.87,91.821,4.21834406]
[1772648738539,3.41210383,91.86,91.821,4.21834406]
[1772648739236,9.794,91.858,91.821,4.21834406]
[1772648739636,9.793,91.869,91.826,4.21869086]
[1772648740134,9.792,91.877,91.829,4.21869086]
[1772648741041,9.791,91.885,91.835,4.21421391]
[1772648741438,3.41210383,91.88,91.835,4.21421391]
[1772648741633,10.15121527,91.869,91.781,10.91405805]
[1772648741839,3.41210383,91.84,91.781,10.91405805]
[1772648744441,9.797,91.832,91.781,10.91405805]
[1772648745136,3.41210383,91.82,91.771,10.71417613]
[1772648745333,3.41210383,91.83,91.771,10.71417613]
[1772648745538,9.797,91.825,91.781,10.71417613]
[1772648745735,13.49500532,91.879,91.702,152.614]
[1772648745736,11.64196859,91.85,91.791,10.71417613]
[1772648746037,3.41210383,91.85,91.791,10.71417613]
[1772648746442,3.41428664,91.85,91.791,10.71417613]
[1772648746642,9.796,91.836,91.791,10.71417613]
[1772648746842,19.585,91.872,91.791,10.71417613]
[1772648747042,3.41428664,91.84,91.791,10.71417613]
[1772648748444,9.797,91.829,91.791,10.71417613]
[1772648749547,9.797,91.829,91.712,177.0]
[1772648749548,3.41428664,91.81,91.76,3.41428664]
[1772648749744,3.41428664,91.82,91.76,3.41428664]
[1772648749947,9.8,91.802,91.77,3.41428664]
[1772648750146,3.41428664,91.82,91.749,9.805]
[1772648750147,3.41428664,91.82,91.76,3.41428664]
[1772648750646,9.8,91.803,91.76,3.41428664]
[1772648750847,9.8,91.803,91.77,3.41428664]
[1772648751542,9.799,91.811,91.78,3.41428664]
[1772648751847,3.41428664,91.84,91.791,5.33489777]
[1772648752046,20.30451575,91.887,91.791,5.33489777]
[1772648752047,9.798,91.819,91.791,5.33489777]
[1772648752643,9.799,91.812,91.78,3.41428664]
[1772648753349,9.798,91.82,91.78,3.41428664]
[1772648754450,9.799,91.813,91.78,3.41428664]
[1772648754649,9.799,91.813,91.775,3.97730531]
[1772648756852,9.798,91.821,91.781,3.97730531]
[1772648757451,9.797,91.829,91.781,3.97730531]
[1772648757646,2.8557973,91.829,91.781,3.97730531]
[1772648758154,9.798,91.822,91.781,3.97730531]
[1772648760755,3.00212541,91.821,91.78,3.41428664]
[1772648761554,3.00212541,91.836,91.791,3.97730531]
[1772648762355,8.41241514,91.864,91.771,3.97730531]
[1772648762356,3.41428664,91.82,91.771,3.97730531]
[1772648762558,3.41428664,91.81,91.771,3.97730531]
[1772648762956,2.99503926,91.819,91.771,3.97730531]
[1772648763952,9.798,91.821,91.781,3.97730531]
[1772648764354,9.798,91.815,91.781,3.97730531]
[1772648765155,2.96437245,91.829,91.781,3.97730531]
[1772648765357,3.41428664,91.82,91.781,3.97730531]
[1772648765759,9.798,91.816,91.781,3.97730531]
[1772648766057,3.41428664,91.82,91.781,3.97730531]
[1772648766859,9.798,91.817,91.781,3.97730531]
[1772648767059,2.96437245,91.829,91.781,3.97730531]
[1772648767462,9.798,91.822,91.781,3.97730531]
[1772648768360,9.798,91.822,91.703,152.612]
[1772648768361,3.41428664,91.84,91.791,3.97730531]
[1772648768751,3.01311793,91.819,91.775,3.97730531]
[1772648770363,9.798,91.815,91.775,3.97730531]
[1772648770956,9.798,91.823,91.78,3.41428664]
[1772648771161,3.00997731,91.836,91.781,3.97730531]
[1772648771362,3.41428664,91.83,91.781,3.97730531]
[1772648771563,3.00997731,91.83,91.781,3.97730531]
[1772648771754,6.42426395,91.83,91.781,3.97730531]
[1772648771957,9.798,91.816,91.781,3.97730531]
[1772648772163,3.00997731,91.829,91.781,3.97730531]
[1772648772362,3.41428664,91.82,91.781,3.97730531]
[1772648772756,9.798,91.817,91.781,3.97730531]
[1772648772955,3.00997731,91.829,91.781,3.97730531]
[1772648773461,9.798,91.818,91.781,3.97730531]
[1772648773867,3.41428664,91.82,91.781,3.97730531]
[1772648774167,9.798,91.819,91.781,3.97730531]
[1772648774659,9.798,91.819,91.783,9.802]
[1772648774873,9.798,91.819,91.781,3.97730531]
[1772648775066,9.799,91.813,91.781,3.97730531]
[1772648775669,9.798,91.818,91.781,3.97730531]
[1772648775865,3.00997731,91.829,91.781,3.97730531]
[1772648776168,33.08200532,91.862,91.715,152.592]
[1772648776169,2.96413478,91.859,91.816,9.798]
[1772648776470,2.96413478,91.859,91.815,3.97730531]
[1772648776868,9.794,91.858,91.815,3.97730531]
[1772648777270,8.41446521,91.863,91.821,3.97730531]
[1772648777472,2.9686141,91.874,91.831,3.97730531]
[1772648778264,2.9686141,91.891,91.85,3.41428664]
[1772648778771,2.95459249,91.906,91.851,3.71267474]
[1772648779473,9.789,91.903,91.851,3.71267474]
[1772648779869,3.41428664,91.9,91.851,3.71267474]
[1772648780371,2.98586775,91.889,91.836,3.71267474]
[1772648780774,2.98586775,91.889,91.841,3.71267474]
[1772648780975,12.77686775,91.889,91.841,3.71267474]
[1772648783372,12.77686775,91.889,91.774,19.606]
[1772648783373,3.02035722,91.869,91.812,3.71267474]
[1772648783577,3.41428664,91.86,91.812,3.71267474]
[1772648784177,12.81335722,91.869,91.82,3.41428664]
[1772648784980,12.81335722,91.869,91.813,3.71267474]
[1772648785475,3.41428664,91.86,91.817,9.798]
[1772648785682,12.81335722,91.869,91.817,13.40445264]
[1772648785985,12.81335722,91.869,91.818,3.60645264]
[1772648786280,12.81335722,91.869,91.82,3.41428664]
[1772648786581,12.81335722,91.869,91.82,3.60645264]
[1772648787387,12.81335722,91.869,91.821,9.798]
[1772648788382,12.81335722,91.869,91.821,13.40445264]
[1772648789179,12.81335722,91.869,91.822,3.60645264]
[1772648789376,2.56117012,91.859,91.807,3.60645264]
[1772648789678,3.41428664,91.85,91.807,3.60645264]
[1772648790582,2.37305007,91.872,91.821,3.60645264]
[1772648790785,2.37305007,91.872,91.774,19.606]
[1772648790786,2.37305007,91.886,91.831,3.60645264]
[1772648791284,3.41428664,91.88,91.831,3.60645264]
[1772648792378,9.791,91.884,91.834,3.60645264]
[1772648792578,2.37305007,91.886,91.834,3.60645264]
[1772648792579,2.37305007,91.886,91.84,3.41428664]
[1772648792781,152.149,91.983,91.841,3.60645264]
[1772648792782,5.79552514,91.9,91.841,3.60645264]
[1772648792982,3.41428664,91.89,91.841,3.60645264]
[1772648793180,9.791,91.889,91.845,9.795]
[1772648794784,3.41428664,91.88,91.841,3.60645264]
[1772648795283,12.11440465,91.889,91.841,3.60645264]
[1772648796794,3.41428664,91.87,91.826,3.60645264]
[1772648797686,2.33714559,91.879,91.83,3.41428664]
[1772648797881,13.20528664,91.88,91.83,3.41428664]
[1772648797882,3.41428664,91.88,91.831,3.60645264]
[1772648798480,3.41428664,91.89,91.831,3.60645264]
[1772648798882,3.41428664,91.89,91.841,3.60645264]
[1772648799389,13.20428664,91.89,91.843,3.60645264]
[1772648800386,13.20428664,91.89,91.845,9.795]
[1772648800590,9.791,91.884,91.843,3.60645264]
[1772648801491,3.41428664,91.89,91.843,3.60645264]
[1772648802086,3.41428664,91.9,91.845,3.60645264]
[1772648802292,2.40941581,91.913,91.861,3.60645264]
[1772648802500,3.41428664,91.91,91.861,3.60645264]
[1772648802694,16.93975362,91.947,91.818,19.597]
[1772648802695,3.41428664,91.89,91.847,3.60645264]
[1772648802892,3.41428664,91.88,91.847,3.60645264]
[1772648803304,5.83077393,91.89,91.847,3.60645264]
[1772648803997,9.791,91.887,91.847,3.60645264]
[1772648804700,5.83077393,91.89,91.847,13.40145264]
[1772648804890,2.41648729,91.89,91.847,3.60645264]
[1772648805091,2.41648729,91.89,91.797,19.601]
[1772648805092,3.41428664,91.88,91.823,3.60645264]
[1772648805701,3.41428664,91.88,91.831,3.60645264]
[1772648806303,3.41428664,91.88,91.833,3.60645264]
[1772648807499,3.41428664,91.86,91.814,3.60645264]
[1772648807905,2.40574366,91.866,91.821,3.60645264]
[1772648808199,3.41428664,91.88,91.821,3.60645264]
[1772648808596,5.79027623,91.88,91.821,3.60645264]
[1772648808799,5.79027623,91.88,91.82,3.41177017]
[1772648808800,5.79027623,91.88,91.825,3.96609558]
[1772648809197,3.41177017,91.87,91.825,3.96609558]
[1772648810002,3.41177017,91.87,91.827,13.76309558]
[1772648810206,2.37850606,91.879,91.827,13.76309558]
[1772648810609,2.37850606,91.879,91.831,9.797]
[1772648812702,2.37850606,91.879,91.838,3.96609558]
[1772648814502,9.791,91.889,91.84,3.96609558]
[1772648815909,9.791,91.889,91.843,9.795]
[1772648816310,9.791,91.889,91.843,13.76109558]
[1772648816610,9.791,91.889,91.844,3.96609558]
[1772648819414,9.791,91.887,91.844,3.96609558]
[1772648819615,2.3928394,91.886,91.844,3.96609558]
[1772648820107,10.64783429,91.885,91.844,3.96609558]
[1772648820411,13.49500532,91.915,91.83,3.41177017]
[1772648820412,3.41177017,91.87,91.83,3.96609558]
[1772648821006,2.38546479,91.868,91.823,9.797]
[1772648821215,3.41177017,91.86,91.823,9.797]
[1772648821706,3.41177017,91.87,91.832,3.96609558]
[1772648821910,10.11609975,91.892,91.796,19.601]
[1772648821911,2.38546479,91.896,91.841,3.96609558]
[1772648822107,8.39756896,91.895,91.841,3.96609558]
[1772648822309,8.39756896,91.894,91.853,9.794]
[1772648822509,8.39756896,91.893,91.853,9.794]
[1772648822706,8.39756896,91.892,91.853,9.794]
[1772648823016,2.38546479,91.896,91.853,9.794]
[1772648823017,8.39756896,91.891,91.853,9.794]
[1772648823315,8.39756896,91.89,91.853,9.794]
[1772648823521,8.39756896,91.889,91.853,9.794]
[1772648823714,8.39756896,91.888,91.853,9.794]
[1772648823915,8.39756896,91.887,91.853,9.794]
[1772648824119,2.38546479,91.896,91.853,9.794]
[1772648824120,8.39756896,91.886,91.853,9.794]
[1772648824320,8.39756896,91.885,91.853,9.794]
[1772648824519,8.39756896,91.884,91.853,9.794]
[1772648824721,8.39756896,91.883,91.854,3.96609558]
[1772648824920,9.79,91.894,91.854,3.96609558]
[1772648825117,8.40067205,91.893,91.854,3.96609558]
[1772648825424,8.40067205,91.892,91.855,9.794]
[1772648825625,8.40067205,91.891,91.856,3.96609558]
[1772648825826,8.40067205,91.89,91.856,3.96609558]
[1772648826025,3.41177017,91.9,91.856,3.96609558]
[1772648826221,8.39958466,91.899,91.856,3.96609558]
[1772648826424,3.41177017,91.9,91.856,3.96609558]
[1772648826425,8.39958466,91.898,91.856,3.96609558]
[1772648826625,8.39958466,91.897,91.856,3.96609558]
[1772648826829,8.74072362,91.913,91.815,19.597]
[1772648826830,2.39387228,91.889,91.841,3.96609558]
[1772648827027,3.41177017,91.88,91.841,3.96609558]
[1772648827331,2.39387228,91.887,91.815,9.798]
[1772648827332,9.794,91.857,91.815,9.798]
[1772648827526,3.41177017,91.85,91.815,9.798]
[1772648828426,3.41177017,91.86,91.815,9.798]
[1772648829932,3.41177017,91.86,91.822,9.798]
[1772648831832,8.28168732,91.866,91.822,9.798]
[1772648832128,3.41177017,91.86,91.822,9.798]
[1772648833935,8.28168732,91.864,91.822,13.76409558]
[1772648834130,8.28168732,91.868,91.83,3.96609558]
[1772648834330,8.28168732,91.879,91.83,3.96609558]
[1772648834531,3.41177017,91.87,91.83,3.96609558]
[1772648836736,3.41177017,91.89,91.833,3.96609558]
[1772648836938,8.28192156,91.889,91.833,3.96609558]
[1772648837238,8.28192156,91.888,91.841,3.96609558]
[1772648837430,8.28192156,91.887,91.841,3.96609558]
[1772648837630,8.28192156,91.886,91.841,3.96609558]
[1772648837829,8.28192156,91.885,91.841,3.96609558]
[1772648838133,8.28192156,91.884,91.853,3.96609558]
[1772648838336,8.28192156,91.896,91.853,3.96609558]
[1772648838536,8.28192156,91.895,91.853,3.96609558]
[1772648838731,8.28192156,91.894,91.853,3.96609558]
[1772648838931,8.28192156,91.893,91.853,3.96609558]
[1772648839232,8.28192156,91.892,91.853,3.96609558]
[1772648839441,8.28192156,91.891,91.853,3.96609558]
[1772648839636,8.28192156,91.896,91.853,3.96609558]
[1772648839832,8.28192156,91.895,91.853,3.96609558]
[1772648840031,8.28192156,91.894,91.853,3.96609558]
[1772648840228,8.28192156,91.893,91.853,3.96609558]
[1772648840429,8.28192156,91.892,91.853,3.96609558]
[1772648840634,8.28192156,91.896,91.853,3.96609558]
[1772648840836,2.35608576,91.889,91.844,9.795]
[1772648841035,10.63800732,91.889,91.845,3.87236973]
[1772648841439,10.63800732,91.889,91.848,9.795]
[1772648841939,3.41177017,91.9,91.855,9.794]
[1772648842238,8.28192156,91.899,91.855,9.794]
[1772648842438,8.28192156,91.898,91.861,3.87236973]
[1772648842633,8.28192156,91.897,91.861,3.87236973]
[1772648842834,8.28192156,91.896,91.861,3.87236973]
[1772648843037,2.35839305,91.919,91.871,3.87236973]
[1772648843337,3.41177017,91.92,91.878,3.87236973]
[1772648843535,3.41177017,91.91,91.861,3.87236973]
[1772648844637,3.41177017,91.91,91.865,3.87236973]
[1772648844842,3.41177017,91.92,91.871,3.87236973]
[1772648845032,9.786,91.928,91.882,3.87236973]
[1772648845232,3.41177017,91.93,91.882,3.87236973]
[1772648845537,3.41177017,91.92,91.882,3.87236973]
[1772648846334,3.41177017,91.92,91.883,9.791]
[1772648846741,12.1504508,91.928,91.883,9.791]
[1772648847443,12.1504508,91.928,91.882,3.87236973]
[1772648847642,13.19877017,91.92,91.882,3.87236973]
[1772648848639,2.40019255,91.916,91.865,9.793]
[1772648848941,2.40019255,91.916,91.866,3.65219733]
[1772648849141,9.788,91.914,91.869,9.793]
[1772648849342,3.41177017,91.91,91.869,9.793]
[1772648850538,3.41177017,91.91,91.866,3.65219733]
[1772648851231,3.41177017,91.91,91.868,9.793]
[1772648852633,2.35503508,91.899,91.851,3.65219733]
[1772648852838,3.41177017,91.89,91.841,3.65219733]
[1772648854440,3.41177017,91.89,91.843,13.44719733]
[1772648854844,3.41177017,91.89,91.844,3.65219733]
[1772648855045,2.35503508,91.899,91.852,3.65219733]
[1772648855939,3.41177017,91.89,91.852,3.65219733]
[1772648856843,13.20177017,91.89,91.847,9.795]
[1772648857239,3.41177017,91.89,91.847,9.795]
[1772648858944,3.41177017,91.89,91.847,13.44719733]
[1772648859244,9.79,91.898,91.85,16.8589675]
[1772648859445,9.79,91.898,91.851,3.65219733]
[1772648859940,3.41177017,91.89,91.851,3.65219733]
[1772648860243,3.41177017,91.88,91.847,9.795]
[1772648860444,5.62912985,91.89,91.847,9.795]
[1772648860742,3.41177017,91.89,91.835,3.65219733]
[1772648860947,8.18559939,91.92,91.784,152.477]
[1772648860948,3.41177017,91.91,91.851,3.65219733]
[1772648861441,3.41177017,91.91,91.789,26.81712318]
[1772648861442,0.00059939,91.934,91.881,3.65219733]
[1772648861642,2.19421563,91.95,91.901,3.65219733]
[1772648862237,5.6059858,91.95,91.901,3.65219733]
[1772648863545,9.784,91.949,91.904,9.789]
[1772648863843,2.19908619,91.981,91.931,3.65219733]
[1772648864044,3.41177017,91.99,91.941,3.65219733]
[1772648864845,2.19908619,91.997,91.95,3.41177017]
[1772648865046,2.18795748,92.015,91.961,3.65219733]
[1772648865251,2.18795748,92.049,91.98,7.0639675]
[1772648865550,3.41177017,92.03,91.981,3.65219733]
[1772648866551,2.18795748,92.049,91.981,3.65219733]
[1772648866753,3.41177017,92.04,91.981,3.65219733]
[1772648867452,2.18795748,92.049,91.991,3.65219733]
[1772648867649,3.41177017,92.04,91.991,3.65219733]
[1772648867951,2.18795748,92.049,91.991,3.65219733]
[1772648868152,3.41177017,92.04,91.991,3.65219733]
[1772648868447,2.18795748,92.049,91.991,3.65219733]
[1772648869050,1.94112556,92.047,91.991,3.65219733]
[1772648869348,1.94112556,92.047,91.974,3.84594062]
[1772648870550,11.70610305,92.043,91.977,3.84594062]
[1772648871349,1.93210305,92.042,91.979,9.781]
[1772648871550,1.93210305,92.039,91.98,3.84594062]
[1772648872148,1.93210305,92.037,91.98,3.84594062]
[1772648873456,9.775,92.036,91.98,3.84594062]
[1772648874455,9.774,92.047,91.982,3.84594062]
[1772648875757,9.774,92.047,91.986,3.84594062]
[1772648875958,11.54179332,92.047,91.986,3.84594062]
[1772648876257,1.76779332,92.044,91.986,3.84594062]
[1772648877255,11.54108611,92.028,91.97,3.84594062]
[1772648878452,11.54108611,92.028,91.972,3.84594062]
[1772648879160,11.54108611,92.028,91.974,3.84594062]
[1772648879964,11.54108611,92.028,91.976,3.84594062]
[1772648880564,7.94108611,92.028,91.979,3.84594062]
[1772648880960,9.775,92.039,91.979,3.84594062]
[1772648881367,1.9582331,92.038,91.965,3.84594062]
[1772648882169,9.777,92.015,91.965,3.84594062]
[1772648882364,1.98976021,92.014,91.965,3.84594062]
[1772648882665,1.98976021,92.014,91.95,3.84594062]
[1772648882861,9.778,92.003,91.951,9.784]
[1772648883165,9.778,92.003,91.952,3.84594062]
[1772648884364,9.778,92.003,91.955,9.783]
[1772648884666,11.76877244,91.997,91.931,3.84594062]
[1772648885067,1.98977244,91.996,91.931,3.84594062]
[1772648885362,1.98977244,92.019,91.947,3.84594062]
[1772648886364,2.22192981,91.999,91.947,3.84594062]
[1772648886968,12.00192981,91.992,91.947,3.84594062]
[1772648887274,2.22192981,91.992,91.947,3.84594062]
[1772648888568,3.40361965,91.99,91.947,3.84594062]
[1772648891469,3.40361965,91.99,91.949,3.84594062]
[1772648891772,9.779,91.999,91.949,3.84594062]
[1772648893673,3.40361965,92.02,91.961,3.84594062]
[1772648893874,2.21653982,92.019,91.971,3.84594062]
[1772648894074,13.17861965,92.03,91.979,13.62694062]
[1772648894567,15.40079924,92.03,91.979,13.62694062]
[1772648894773,9.776,92.028,91.979,13.62694062]
[1772648894972,3.40361965,92.02,91.979,13.62694062]
[1772648895173,3.40361965,92.02,91.979,3.84594062]
[1772648895373,3.40361965,92.02,91.972,9.782]
[1772648895374,2.22217959,92.019,91.973,3.84594062]
[1772648895578,3.40361965,92.02,91.973,3.84594062]
[1772648897068,2.22217959,92.034,91.976,3.84594062]
[1772648897275,3.40361965,92.03,91.981,3.84594062]
[1772648898379,3.40361965,92.03,91.988,9.78]
[1772648899281,3.40361965,92.02,91.981,3.84594062]
[1772648899971,2.21399908,92.019,91.979,9.781]
[1772648900178,3.40361965,92.0,91.964,3.66920054]
[1772648900372,3.40361965,91.99,91.941,3.66920054]
[1772648900779,2.22233654,91.999,91.941,3.66920054]
[1772648901485,2.22233654,91.999,91.952,9.784]
[1772648901678,2.22233654,91.999,91.952,13.45320054]
[1772648901979,2.22233654,91.999,91.952,3.66920054]
[1772648903278,3.40361965,92.01,91.961,3.66920054]
[1772648903477,3.40361965,92.02,91.961,3.66920054]
[1772648903883,3.40361965,92.02,91.971,3.66920054]
[1772648904185,9.777,92.012,91.971,3.66920054]
[1772648904983,3.40361965,92.01,91.971,3.66920054]
[1772648905180,9.778,92.009,91.971,3.66920054]
[1772648905386,3.40361965,92.0,91.951,3.60037466]
[1772648905984,13.18261965,92.0,91.951,3.60037466]
[1772648906189,3.40361965,91.99,91.951,3.60037466]
[1772648906386,2.21474936,91.999,91.951,3.60037466]
[1772648906686,3.40361965,91.99,91.951,3.60037466]
[1772648906987,2.21474936,91.999,91.951,3.60037466]
[1772648907385,2.21474936,91.999,91.952,9.784]